fUST/lending_fUST_20250717
["ID","MTS","AMOUNT","RATE_DAILY","PERIOD"]
[372653354,1752735039945,-460.0,0.00018406,2]
[372653355,1752735039955,-460.0,0.00018406,2]
[372653356,1752735039964,-460.0,0.00018406,2]
[372653357,1752735039974,-460.0,0.00018406,2]
[372653358,1752735039984,-460.0,0.00018406,2]
[372653359,1752735039994,-460.0,0.00018406,2]
[372653360,1752735040003,-460.0,0.00018406,2]
[372653361,1752735040013,-460.0,0.00018406,2]
[372653362,1752735040023,-645.82,0.00018406,2]
[372653363,1752735040033,-460.0,0.00018406,2]
[372653364,1752735040043,-460.0,0.00018407,2]
[372653365,1752735040053,-462.82350568,0.00018407,2]
[372653366,1752735040063,-466.93304635,0.00018407,2]
[372653367,1752735040072,-460.0,0.00018407,2]
[372653368,1752735040086,-595.74343778,0.00018407,2]
[372653369,1752735040096,-460.0,0.00018407,2]
[372653370,1752735040106,-460.0,0.00018407,2]
[372653371,1752735040115,-460.0,0.00018407,2]
[372653372,1752735040125,-460.0,0.00018407,2]
[372653373,1752735040136,-460.0,0.00018407,2]
[372653374,1752735040145,-460.0,0.00018407,2]
[372653375,1752735040155,-460.0,0.00018407,2]
[372653376,1752735040164,-460.0,0.00018407,2]
[372653377,1752735040174,-460.0,0.00018407,2]
[372653378,1752735040183,-829.95,0.00018407,2]
[372653379,1752735040193,-460.0,0.00018407,2]
[372653380,1752735040205,-460.0,0.00018407,2]
[372653381,1752735040214,-460.0,0.00018407,2]
[372653382,1752735040223,-460.0,0.00018407,2]
[372653384,1752735040233,-460.0,0.00018407,2]
[372653386,1752735040242,-408.05161364,0.00018407,2]
[372653387,1752735040251,-460.0,0.00018407,2]
[372653388,1752735040261,-151.0,0.00018409,2]
[372653389,1752735040270,-235.997575,0.00018409,2]
[372653390,1752735040279,-235.997575,0.00018409,2]
[372653391,1752735040289,-151.0,0.00018409,2]
[372653392,1752735040298,-151.0,0.00018409,2]
[372653393,1752735040307,-460.0,0.00018409,2]
[372653394,1752735040317,-460.0,0.00018409,2]
[372653395,1752735040326,-460.0,0.00018409,2]
[372653396,1752735040336,-460.0,0.00018409,2]
[372653397,1752735040346,-460.0,0.00018409,2]
[372653398,1752735040355,-460.0,0.00018409,2]
[372653399,1752735040365,-460.0,0.00018409,2]
[372653400,1752735040375,-460.0,0.00018409,2]
[372653401,1752735040384,-460.0,0.00018409,2]
[372653402,1752735040394,-460.0,0.00018409,2]
[372653403,1752735040403,-460.0,0.00018409,2]
[372653404,1752735040413,-460.0,0.00018409,2]
[372653405,1752735040423,-460.0,0.00018409,2]
[372653406,1752735040432,-597.120042,0.00018411,2]
[372653407,1752735040442,-597.120042,0.00018411,2]
[372653408,1752735040452,-352.132311,0.000185,2]
[372653409,1752735040461,-352.132311,0.000185,2]
[372653410,1752735040471,-2260.23,0.000185,2]
[372653411,1752735040480,-587.64792706,0.000185,2]
[372653412,1752735040489,-500.0,0.00018579,2]
[372653413,1752735040499,-291.46808476,0.0001858,2]
[372653414,1752735040509,-460.0,0.0001858,2]
[372653415,1752735040518,-1476.81,0.0001858,2]
[372653416,1752735040528,-2996.48,0.0001858,2]
[372653417,1752735040538,-929.92,0.0001858,2]
[372653418,1752735040547,-953.72747168,0.00018582,2]
[372653419,1752735040557,-460.0,0.00018582,2]
[372653420,1752735040566,-460.0,0.00018582,2]
[372653421,1752735040575,-460.0,0.00018582,2]
[372653422,1752735040585,-460.0,0.00018582,2]
[372653423,1752735040595,-460.0,0.00018582,2]
[372653424,1752735040604,-460.0,0.00018582,2]
[372653425,1752735040614,-460.0,0.00018582,2]
[372653426,1752735040624,-521.67144259,0.00018582,2]
[372653427,1752735040634,-460.0,0.00018582,2]
[372653428,1752735040643,-224.22990729,0.00018582,2]
[372653429,1752735040653,-460.0,0.00018582,2]
[372653430,1752735040663,-460.0,0.00018582,2]
[372653431,1752735040673,-460.0,0.00018582,2]
[372653432,1752735040682,-151.0,0.00018583,2]
[372653433,1752735040692,-235.997575,0.00018583,2]
[372653434,1752735040702,-235.997575,0.00018583,2]
[372653435,1752735040711,-151.0,0.00018583,2]
[372653436,1752735040721,-287.355752,0.00018583,2]
[372653437,1752735040731,-597.120042,0.00018584,2]
[372653438,1752735040741,-597.120042,0.00018584,2]
[372653439,1752735040749,-460.0,0.00018584,2]
[372653440,1752735040759,-500.0,0.00018585,2]
[372653441,1752735040768,-160.0,0.00018637,2]
[372653442,1752735040778,-160.0,0.00018639,2]
[372653443,1752735040787,-160.0,0.00018639,2]
[372653444,1752735040796,-160.0,0.00018639,2]
[372653445,1752735040806,-160.0,0.00018639,2]
[372653446,1752735040815,-160.0,0.00018639,2]
[372653447,1752735040824,-525.67742785,0.00018639,2]
[372653448,1752735040836,-12607.95677342,0.00018639,2]
[372653449,1752735040846,-214.44804168,0.00018639,2]
[372653450,1752735040855,-839.15451687,0.00018639,2]
[372653451,1752735040864,-476.16111942,0.00018639,2]
[372653452,1752735040873,-160.0,0.00018639,2]
[372653453,1752735040883,-230.85589339,0.00018639,2]
[372653454,1752735040893,-215.59244943,0.00018639,2]
[372653455,1752735040902,-160.0,0.00018639,2]
[372653456,1752735040911,-160.0,0.00018644,2]
[372653457,1752735040921,-460.0,0.0001867,2]
[372653458,1752735040931,-460.0,0.0001867,2]
[372653459,1752735040940,-460.0,0.0001867,2]
[372653460,1752735040949,-460.0,0.00018671,2]
[372653461,1752735040959,-460.0,0.00018671,2]
[372653462,1752735040968,-460.0,0.00018671,2]
[372653463,1752735040978,-460.0,0.00018671,2]
[372653464,1752735040987,-460.0,0.00018671,2]
[372653465,1752735040997,-460.0,0.00018671,2]
[372653466,1752735041006,-1843.02,0.00018671,2]
[372653467,1752735041015,-460.0,0.00018672,2]
[372653468,1752735041025,-460.0,0.00018672,2]
[372653469,1752735041034,-460.0,0.00018672,2]
[372653470,1752735041044,-460.0,0.00018672,2]
[372653471,1752735041053,-460.0,0.00018674,2]
[372653472,1752735041062,-460.0,0.00018674,2]
[372653473,1752735041072,-460.0,0.00018674,2]
[372653474,1752735041083,-460.0,0.00018674,2]
[372653476,1752735041092,-460.0,0.00018674,2]
[372653477,1752735041102,-460.0,0.00018674,2]
[372653478,1752735041111,-460.0,0.00018674,2]
[372653479,1752735041120,-3457.88,0.00018674,2]
[372653480,1752735041129,-789.83,0.00018674,2]
[372653481,1752735041138,-4699.05,0.00018674,2]
[372653482,1752735041147,-460.0,0.00018674,2]
[372653483,1752735041156,-460.45,0.00018674,2]
[372653484,1752735041165,-561.69027837,0.00018674,2]
[372653485,1752735041174,-460.0,0.00018674,2]
[372653486,1752735041184,-2440.55,0.00018674,2]
[372653487,1752735041193,-460.0,0.00018674,2]
[372653488,1752735041203,-1913.65,0.00018674,2]
[372653489,1752735041214,-460.0,0.00018674,2]
[372653490,1752735041224,-1594.34,0.00018674,2]
[372653491,1752735041233,-626.01,0.00018674,2]
[372653492,1752735041242,-376.59449698,0.00018675,2]
[372653493,1752735041253,-460.0,0.00018675,2]
[372653494,1752735041261,-460.0,0.00018675,2]
[372653495,1752735041271,-460.0,0.00018675,2]
[372653496,1752735041281,-551.12374741,0.00018675,2]
[372653497,1752735041290,-460.0,0.00018675,2]
[372653498,1752735041299,-460.0,0.00018675,2]
[372653499,1752735041308,-1300.71,0.00018675,2]
[372653500,1752735041317,-691.63,0.00018675,2]
[372653501,1752735041326,-460.0,0.00018675,2]
[372653502,1752735041337,-474.33,0.00018675,2]
[372653503,1752735041346,-646.42,0.00018675,2]
[372653504,1752735041355,-460.0,0.00018675,2]
[372653505,1752735041364,-498.58,0.00018675,2]
[372653506,1752735041373,-460.0,0.00018675,2]
[372653507,1752735041381,-913.15,0.00018675,2]
[372653508,1752735041390,-531.78,0.00018675,2]
[372653509,1752735041399,-460.0,0.00018675,2]
[372653510,1752735041408,-460.0,0.00018675,2]
[372653511,1752735041417,-460.0,0.00018675,2]
[372653512,1752735041428,-460.0,0.00018675,2]
[372653513,1752735041437,-460.0,0.00018676,2]
[372653514,1752735041447,-556.02160503,0.00018676,2]
[372653515,1752735041591,-222.78842948,0.00018676,2]
[372653516,1752735041600,-460.0,0.00018676,2]
[372653517,1752735041609,-460.0,0.00018676,2]
[372653518,1752735041619,-460.0,0.00018678,2]
[372653519,1752735041628,-460.0,0.00018678,2]
[372653520,1752735041637,-460.0,0.00018678,2]
[372653521,1752735041647,-460.0,0.00018678,2]
[372653522,1752735041656,-732.55,0.00018678,2]
[372653523,1752735041666,-551.29,0.00018678,2]
[372653524,1752735041675,-153.73076384,0.00018678,2]
[372653525,1752735041684,-460.0,0.00018678,2]
[372653526,1752735041692,-460.0,0.00018678,2]
[372653527,1752735041702,-460.0,0.00018678,2]
[372653528,1752735041711,-2703.32,0.00018678,2]
[372653529,1752735041720,-799.66,0.00018678,2]
[372653530,1752735041729,-460.0,0.00018678,2]
[372653531,1752735041738,-724.56,0.00018678,2]
[372653532,1752735041748,-460.0,0.00018679,2]
[372653533,1752735041757,-460.0,0.00018679,2]
[372653534,1752735041766,-460.0,0.00018679,2]
[372653535,1752735041776,-460.0,0.00018679,2]
[372653536,1752735041785,-460.0,0.00018679,2]
[372653537,1752735041795,-460.0,0.00018679,2]
[372653538,1752735041804,-1211.48,0.00018679,2]
[372653539,1752735041814,-664.88,0.00018679,2]
[372653540,1752735041823,-1887.15,0.00018679,2]
[372653541,1752735041834,-507.28,0.00018679,2]
[372653542,1752735041843,-460.0,0.0001868,2]
[372653543,1752735041852,-460.0,0.0001868,2]
[372653544,1752735041861,-460.0,0.0001868,2]
[372653545,1752735041870,-460.0,0.0001868,2]
[372653546,1752735041880,-460.0,0.0001868,2]
[372653547,1752735041889,-460.0,0.0001868,2]
[372653548,1752735041898,-522.87,0.0001868,2]
[372653549,1752735041908,-460.0,0.0001868,2]
[372653550,1752735041917,-460.0,0.0001868,2]
[372653551,1752735041926,-460.0,0.0001868,2]
[372653552,1752735041935,-460.0,0.0001868,2]
[372653553,1752735041944,-460.0,0.0001868,2]
[372653554,1752735041953,-460.0,0.0001868,2]
[372653555,1752735041963,-460.0,0.0001868,2]
[372653556,1752735041972,-640.23,0.0001868,2]
[372653557,1752735041981,-625.48,0.0001868,2]
[372653558,1752735041991,-460.0,0.0001868,2]
[372653559,1752735042000,-460.0,0.0001868,2]
[372653560,1752735042010,-460.0,0.0001868,2]
[372653562,1752735042019,-460.0,0.0001868,2]
[372653563,1752735042029,-460.0,0.0001868,2]
[372653564,1752735042039,-709.79,0.0001868,2]
[372653565,1752735042048,-526.47311081,0.0001868,2]
[372653567,1752735042058,-460.0,0.0001868,2]
[372653568,1752735042067,-188.29,0.0001868,2]
[372653569,1752735042077,-460.0,0.0001868,2]
[372653570,1752735042091,-460.0,0.0001868,2]
[372653571,1752735042101,-460.0,0.0001868,2]
[372653572,1752735042110,-460.0,0.0001868,2]
[372653573,1752735042120,-460.0,0.0001868,2]
[372653574,1752735042130,-460.0,0.0001868,2]
[372653575,1752735042140,-645.82,0.0001868,2]
[372653576,1752735042149,-460.0,0.0001868,2]
[372653577,1752735042159,-352.132311,0.00018681,2]
[372653578,1752735042168,-352.132311,0.00018681,2]
[372653579,1752735042178,-460.0,0.00018681,2]
[372653580,1752735042188,-460.0,0.00018681,2]
[372653581,1752735042197,-460.0,0.00018681,2]
[372653582,1752735042210,-460.0,0.00018681,2]
[372653583,1752735042220,-460.0,0.00018681,2]
[372653584,1752735042230,-460.0,0.00018681,2]
[372653585,1752735042239,-829.95,0.00018681,2]
[372653586,1752735042249,-460.0,0.00018681,2]
[372653587,1752735042258,-460.0,0.00018681,2]
[372653588,1752735042268,-460.0,0.00018681,2]
[372653589,1752735042277,-460.0,0.00018681,2]
[372653590,1752735042286,-460.0,0.00018681,2]
[372653591,1752735042296,-460.0,0.00018681,2]
[372653592,1752735042306,-185.509432,0.00018683,2]
[372653593,1752735042315,-185.509432,0.00018683,2]
[372653594,1752735042324,-214.433393,0.00018683,2]
[372653595,1752735042338,-214.433393,0.00018683,2]
[372653596,1752735042348,-151.0,0.00018683,2]
[372653597,1752735042357,-460.0,0.00018683,2]
[372653598,1752735042367,-151.0,0.00018683,2]
[372653599,1752735042376,-151.0,0.00018683,2]
[372653600,1752735042386,-532.20481744,0.00018683,2]
[372653601,1752735042395,-460.0,0.00018683,2]
[372653602,1752735042405,-460.0,0.00018683,2]
[372653603,1752735042415,-460.0,0.00018683,2]
[372653604,1752735042424,-460.0,0.00018683,2]
[372653605,1752735042434,-460.0,0.00018683,2]
[372653606,1752735042443,-460.0,0.00018683,2]
[372653607,1752735042452,-460.0,0.00018683,2]
[372653608,1752735042462,-456.4522863,0.0001869,2]
[372653609,1752735042471,-151.0,0.00018728,2]
[372653610,1752735042480,-235.997575,0.00018728,2]
[372653611,1752735042489,-235.997575,0.00018728,2]
[372653612,1752735042499,-151.0,0.00018728,2]
[372653613,1752735042509,-353.0,0.0001873,2]
[372653614,1752735042518,-353.0,0.00018794,2]
[372653615,1752735042527,-151.0,0.000188,2]
[372653616,1752735042537,-353.0,0.00018833,2]
[372653617,1752735042546,-500.0,0.00018851,2]
[372653618,1752735042555,-501.50161883,0.00018851,2]
[372653619,1752735042564,-500.0,0.00018853,2]
[372653620,1752735042574,-597.120042,0.00018854,2]
[372653621,1752735042587,-597.120042,0.00018854,2]
[372653622,1752735042596,-460.0,0.00018854,2]
[372653623,1752735042606,-1476.81,0.00018854,2]
[372653624,1752735042615,-2996.48,0.00018854,2]
[372653625,1752735042625,-929.92,0.00018854,2]
[372653626,1752735042635,-460.0,0.00018856,2]
[372653627,1752735042644,-460.0,0.00018856,2]
[372653628,1752735042653,-460.0,0.00018856,2]
[372653629,1752735042663,-460.0,0.00018856,2]
[372653630,1752735042672,-460.0,0.00018856,2]
[372653631,1752735042681,-460.0,0.00018856,2]
[372653632,1752735042691,-460.0,0.00018856,2]
[372653633,1752735042699,-460.0,0.00018856,2]
[372653634,1752735042709,-352.132311,0.00018857,2]
[372653635,1752735042719,-352.132311,0.00018857,2]
[372653636,1752735042728,-185.509432,0.00018858,2]
[372653637,1752735042737,-185.509432,0.00018858,2]
[372653638,1752735042746,-214.433393,0.00018858,2]
[372653639,1752735042756,-214.433393,0.00018858,2]
[372653640,1752735042765,-151.0,0.00018858,2]
[372653641,1752735042774,-151.0,0.00018858,2]
[372653642,1752735042783,-151.0,0.00018858,2]
[372653643,1752735042792,-460.0,0.00018858,2]
[372653644,1752735042802,-303.00000303,0.000189,2]
[372653645,1752735042811,-151.0,0.000189,2]
[372653646,1752735042821,-1475.14947806,0.000189,2]
[372653647,1752735042832,-303.03030303,0.000189,2]
[372653648,1752735042842,-353.0,0.00018909,2]
[372653649,1752735042851,-1000.0,0.00018921,2]
[372653650,1752735042860,-1000.0,0.00018921,2]
[372653651,1752735042870,-353.0,0.00018929,2]
[372653652,1752735042880,-4983.74508526,0.00018938,2]
[372653653,1752735042890,-254.29528754,0.00018944,2]
[372653654,1752735042899,-460.0,0.00018944,2]
[372653655,1752735042909,-460.0,0.00018944,2]
[372653656,1752735042918,-500.0,0.00018944,2]
[372653657,1752735042928,-460.0,0.00018945,2]
[372653658,1752735042938,-460.0,0.00018945,2]
[372653659,1752735042949,-460.0,0.00018945,2]
[372653660,1752735042961,-460.0,0.00018945,2]
[372653661,1752735042971,-1843.02,0.00018945,2]
[372653662,1752735042980,-460.0,0.00018946,2]
[372653663,1752735042990,-460.0,0.00018946,2]
[372653664,1752735042999,-460.0,0.00018948,2]
[372653665,1752735043009,-460.0,0.00018948,2]
[372653666,1752735043019,-460.0,0.00018948,2]
[372653667,1752735043028,-460.0,0.00018948,2]
[372653668,1752735043038,-460.0,0.00018948,2]
[372653669,1752735043047,-460.0,0.00018948,2]
[372653670,1752735043057,-3457.88,0.00018948,2]
[372653671,1752735043067,-789.83,0.00018948,2]
[372653672,1752735043076,-4699.05,0.00018948,2]
[372653673,1752735043090,-394.46120507,0.00018948,2]
[372653674,1752735043101,-460.45,0.00018948,2]
[372653675,1752735043110,-460.0,0.00018948,2]
[372653676,1752735043120,-2440.55,0.00018948,2]
[372653677,1752735043130,-460.0,0.00018948,2]
[372653678,1752735043140,-1913.65,0.00018948,2]
[372653679,1752735043150,-460.0,0.00018948,2]
[372653680,1752735043160,-1594.34,0.00018948,2]
[372653681,1752735043170,-626.01,0.00018948,2]
[372653682,1752735043179,-460.0,0.00018949,2]
[372653683,1752735043189,-460.0,0.00018949,2]
[372653684,1752735043199,-460.0,0.00018949,2]
[372653685,1752735043213,-460.0,0.00018949,2]
[372653686,1752735043223,-460.0,0.00018949,2]
[372653687,1752735043233,-1300.71,0.00018949,2]
[372653688,1752735043243,-691.63,0.00018949,2]
[372653689,1752735043252,-460.0,0.00018949,2]
[372653690,1752735043262,-474.33,0.00018949,2]
[372653691,1752735043271,-646.42,0.00018949,2]
[372653692,1752735043281,-498.58,0.00018949,2]
[372653693,1752735043291,-460.0,0.00018949,2]
[372653694,1752735043301,-913.15,0.00018949,2]
[372653695,1752735043310,-531.78,0.00018949,2]
[372653696,1752735043320,-460.0,0.00018949,2]
[372653697,1752735043333,-460.0,0.00018949,2]
[372653698,1752735043343,-460.0,0.00018949,2]
[372653699,1752735043352,-460.0,0.00018949,2]
[372653700,1752735043362,-460.0,0.0001895,2]
[372653701,1752735043371,-150.69300627,0.0001895,2]
[372653702,1752735043381,-460.0,0.0001895,2]
[372653703,1752735043390,-568.4635805,0.00018952,2]
[372653704,1752735043400,-500.0,0.00018952,2]
[372653705,1752735043410,-500.01606192,0.00018952,2]
[372653706,1752735043419,-500.0,0.00018952,2]
[372653707,1752735043429,-500.0,0.00018952,2]
[372653708,1752735043438,-540.0,0.00018952,2]
[372653709,1752735043447,-460.0,0.00018952,2]
[372653710,1752735043457,-460.0,0.00018952,2]
[372653711,1752735043466,-460.0,0.00018952,2]
[372653712,1752735043476,-732.55,0.00018952,2]
[372653713,1752735043485,-551.29,0.00018952,2]
[372653714,1752735043495,-460.0,0.00018952,2]
[372653715,1752735043505,-460.0,0.00018952,2]
[372653716,1752735043515,-460.0,0.00018952,2]
[372653717,1752735043524,-2703.32,0.00018952,2]
[372653718,1752735043533,-799.66,0.00018952,2]
[372653719,1752735043543,-460.0,0.00018952,2]
[372653720,1752735043553,-724.56,0.00018952,2]
[372653721,1752735043562,-460.0,0.00018953,2]
[372653722,1752735043576,-460.0,0.00018953,2]
[372653723,1752735043595,-1211.48,0.00018953,2]
[372653724,1752735043604,-664.88,0.00018953,2]
[372653725,1752735043614,-1887.15,0.00018953,2]
[372653726,1752735043624,-507.28,0.00018953,2]
[372653727,1752735043633,-460.0,0.00018954,2]
[372653728,1752735043643,-460.0,0.00018954,2]
[372653729,1752735043652,-460.0,0.00018954,2]
[372653730,1752735043662,-460.0,0.00018954,2]
[372653731,1752735043671,-460.0,0.00018954,2]
[372653732,1752735043681,-460.0,0.00018954,2]
[372653733,1752735043690,-522.87,0.00018954,2]
[372653734,1752735043700,-460.0,0.00018954,2]
[372653736,1752735043710,-460.0,0.00018954,2]
[372653737,1752735043720,-460.0,0.00018954,2]
[372653738,1752735043729,-460.0,0.00018954,2]
[372653740,1752735043738,-460.0,0.00018954,2]
[372653741,1752735043748,-460.0,0.00018954,2]
[372653742,1752735043757,-460.0,0.00018954,2]
[372653743,1752735043767,-640.23,0.00018954,2]
[372653744,1752735043776,-625.48,0.00018954,2]
[372653745,1752735043786,-460.0,0.00018954,2]
[372653746,1752735043795,-460.0,0.00018954,2]
[372653747,1752735043805,-460.0,0.00018954,2]
[372653748,1752735043814,-460.0,0.00018954,2]
[372653749,1752735043823,-460.0,0.00018954,2]
[372653750,1752735043835,-709.79,0.00018954,2]
[372653751,1752735043845,-460.0,0.00018954,2]
[372653752,1752735043855,-460.0,0.00018954,2]
[372653753,1752735043864,-460.0,0.00018954,2]
[372653754,1752735043874,-460.0,0.00018954,2]
[372653755,1752735043883,-460.0,0.00018954,2]
[372653756,1752735043893,-460.0,0.00018954,2]
[372653757,1752735043902,-460.0,0.00018954,2]
[372653758,1752735043912,-645.82,0.00018954,2]
[372653759,1752735043922,-460.0,0.00018954,2]
[372653760,1752735043931,-460.0,0.00018955,2]
[372653761,1752735043941,-466.21096912,0.00018955,2]
[372653762,1752735043951,-460.0,0.00018955,2]
[372653763,1752735043960,-460.0,0.00018955,2]
[372653764,1752735043970,-460.0,0.00018955,2]
[372653765,1752735043980,-829.95,0.00018955,2]
[372653766,1752735043989,-460.0,0.00018955,2]
[372653767,1752735043999,-460.0,0.00018955,2]
[372653768,1752735044008,-460.0,0.00018955,2]
[372653769,1752735044018,-460.0,0.00018955,2]
[372653770,1752735044028,-460.0,0.00018955,2]
[372653771,1752735044037,-151.0,0.00018957,2]
[372653772,1752735044047,-235.997575,0.00018957,2]
[372653773,1752735044057,-235.997575,0.00018957,2]
[372653774,1752735044067,-151.0,0.00018957,2]
[372653775,1752735044077,-460.0,0.00018957,2]
[372653776,1752735044089,-460.0,0.00018957,2]
[372653777,1752735044099,-460.0,0.00018957,2]
[372653778,1752735044108,-460.0,0.00018957,2]
[372653779,1752735044118,-460.0,0.00018957,2]
[372653780,1752735044127,-460.0,0.00018957,2]
[372653781,1752735044137,-403.32,0.00018957,2]
[372653782,1752735044146,-2498.71531441,0.00018977,2]
[372653783,1752735044156,-151.0,0.00019,2]
[372653784,1752735044165,-353.0,0.00019011,2]
[372653785,1752735044174,-353.0,0.00019033,2]
[372653786,1752735044184,-353.0,0.00019041,2]
[372653787,1752735044194,-353.0,0.00019045,2]
[372653788,1752735044205,-500.0,0.00019052,2]
[372653789,1752735044215,-303.00000303,0.00019089,2]
[372653790,1752735044224,-303.03030303,0.00019089,2]
[372653791,1752735044234,-353.0,0.00019093,2]
[372653792,1752735044244,-800.0,0.00019124,2]
[372653793,1752735044255,-597.120042,0.00019128,2]
[372653794,1752735044265,-597.120042,0.00019128,2]
[372653795,1752735044274,-460.0,0.00019128,2]
[372653796,1752735044285,-1476.81,0.00019128,2]
[372653797,1752735044295,-2996.48,0.00019128,2]
[372653798,1752735044304,-929.92,0.00019128,2]
[372653799,1752735044314,-460.0,0.0001913,2]
[372653800,1752735044324,-460.0,0.0001913,2]
[372653801,1752735044335,-460.0,0.0001913,2]
[372653802,1752735044345,-460.0,0.0001913,2]
[372653803,1752735044354,-460.0,0.0001913,2]
[372653804,1752735044364,-352.132311,0.00019132,2]
[372653805,1752735044374,-352.132311,0.00019132,2]
[372653806,1752735044383,-560.69450931,0.00019132,2]
[372653807,1752735044392,-185.509432,0.00019173,2]
[372653808,1752735044401,-185.509432,0.00019173,2]
[372653809,1752735044411,-214.433393,0.00019173,2]
[372653810,1752735044421,-214.433393,0.00019173,2]
[372653811,1752735044431,-151.0,0.00019173,2]
[372653812,1752735044440,-151.0,0.00019173,2]
[372653813,1752735044450,-151.0,0.00019173,2]
[372653814,1752735044459,-151.0,0.00019178,2]
[372653815,1752735044469,-597.120042,0.00019178,2]
[372653816,1752735044478,-597.120042,0.00019178,2]
[372653817,1752735044488,-235.997575,0.00019178,2]
[372653818,1752735044497,-235.997575,0.00019178,2]
[372653819,1752735044507,-151.0,0.00019178,2]
[372653820,1752735044516,-500.0,0.00019178,2]
[372653821,1752735044526,-500.0,0.00019178,2]
[372653822,1752735044535,-500.0,0.00019178,2]
[372653823,1752735044545,-500.0,0.00019178,2]
[372653824,1752735044555,-391.76519705,0.00019178,2]
[372653825,1752735044564,-666.0,0.00019178,2]
[372653826,1752735044574,-877.883779,0.00019178,2]
[372653827,1752735044585,-5000.0,0.00019178,2]
[372653828,1752735044595,-5000.0,0.00019178,2]
[372653829,1752735044604,-5000.0,0.00019178,2]
[372653830,1752735044614,-4100.57100552,0.00019178,2]
[372653831,1752735044624,-353.0,0.00019188,2]
[372653832,1752735044634,-151.0,0.000192,2]
[372653833,1752735044644,-151.0,0.000192,2]
[372653834,1752735044654,-460.0,0.00019218,2]
[372653835,1752735044663,-367.52,0.00019218,2]
[372653836,1752735044672,-460.0,0.00019219,2]
[372653837,1752735044682,-460.0,0.00019219,2]
[372653838,1752735044692,-460.0,0.00019219,2]
[372653839,1752735044702,-460.0,0.00019219,2]
[372653840,1752735044838,-1843.02,0.00019219,2]
[372653841,1752735044848,-460.0,0.0001922,2]
[372653842,1752735044858,-460.0,0.0001922,2]
[372653843,1752735044867,-460.0,0.00019222,2]
[372653844,1752735044877,-460.0,0.00019222,2]
[372653845,1752735044887,-460.0,0.00019222,2]
[372653846,1752735044896,-460.0,0.00019222,2]
[372653847,1752735044906,-474.16423638,0.00019222,2]
[372653848,1752735044916,-3457.88,0.00019222,2]
[372653849,1752735044925,-789.83,0.00019222,2]
[372653850,1752735044935,-4699.05,0.00019222,2]
[372653851,1752735044944,-460.45,0.00019222,2]
[372653852,1752735044954,-460.0,0.00019222,2]
[372653853,1752735044963,-2440.55,0.00019222,2]
[372653854,1752735044972,-460.0,0.00019222,2]
[372653855,1752735044982,-1913.65,0.00019222,2]
[372653856,1752735044991,-460.0,0.00019222,2]
[372653857,1752735045000,-1594.34,0.00019222,2]
[372653858,1752735045010,-626.01,0.00019222,2]
[372653859,1752735045020,-460.0,0.00019223,2]
[372653860,1752735045038,-460.0,0.00019223,2]